bitfinex-derivatives/quotes_ETHF0:USTF0_20260203
["timestamp","ask_amount","ask_price","bid_price","bid_amount"]
[1770156972670,0.00366858,2258.7,2257.7,0.22175]
[1770156972868,2.30730536,2259.3,2257.9,2.26631825]
[1770156973671,2.30730536,2259.1,2257.6,2.26631825]
[1770156973866,2.31120061,2259.1,2257.6,2.26631825]
[1770156974166,2.30730536,2258.9,2257.6,2.26631825]
[1770156974374,2.30730536,2258.9,2257.5,0.00543303]
[1770156974569,2.30730536,2258.8,2257.5,2.27175128]
[1770156977070,2.31120061,2259.1,2257.9,2.26631825]
[1770156977271,0.00389525,2259.1,2258.3,2.26631825]
[1770156978472,2.216,2259.6,2258.3,2.26631825]
[1770156979072,2.216,2259.6,2258.3,2.48801825]
[1770156979576,0.00424789,2259.6,2258.8,2.26631825]
[1770156980174,2.30730536,2260.0,2258.9,2.26631825]
[1770156980373,2.30730536,2260.6,2259.1,2.26631825]
[1770156980677,2.30730536,2260.6,2259.1,2.39384594]
[1770156981171,0.00509684,2260.6,2259.1,2.39857175]
[1770156981480,2.50318344,2260.3,2259.1,0.00472581]
[1770156982573,2.28168344,2260.1,2259.1,0.00472581]
[1770156983476,2.50321344,2260.1,2259.1,0.00472581]
[1770156984872,2.28168344,2259.6,2258.3,2.39384594]
[1770156985680,2.28168344,2259.6,2258.0,4.83057594]
[1770156985881,2.28168344,2259.3,2258.0,2.39708633]
[1770156986074,2.28168344,2259.1,2258.0,0.00324039]
[1770156986381,0.22166,2258.8,2258.0,0.00324039]
[1770156986579,2.28168344,2258.7,2257.4,2.39384594]
[1770156986978,2.28168344,2258.7,2257.1,2.39384594]
[1770156987181,2.28168344,2258.5,2257.1,2.61565594]
[1770156987483,2.28168344,2258.5,2257.1,2.61949292]
[1770156987977,2.28168344,2258.5,2257.1,2.39768292]
[1770156988280,2.50336344,2258.5,2257.1,2.39768292]
[1770156989184,2.28168344,2258.3,2257.1,0.00383698]
[1770156989478,2.50339344,2258.2,2257.1,0.00383698]
[1770156989678,2.28168344,2258.2,2257.1,0.00383698]
[1770156989882,0.22173,2258.1,2257.1,0.00383698]
[1770156990077,2.28168344,2257.6,2256.1,6.59339515]
[1770156990277,2.28168344,2257.2,2255.6,5.03962501]
[1770156990483,0.22184,2256.9,2255.4,2.64577907]
[1770156990678,0.22184,2256.9,2255.0,8.85103845]
[1770156990679,2.28168344,2256.8,2255.0,1.0]
[1770156990878,2.28168344,2256.0,2255.0,1.0]
[1770156991183,2.28168344,2257.0,2255.6,2.39384594]
[1770156991388,4.49768344,2257.1,2256.0,2.39384594]
[1770156991582,2.28168344,2257.5,2256.0,2.39384594]
[1770156991879,2.28168344,2257.5,2256.0,2.61576594]
[1770156992081,0.00522188,2257.5,2256.4,2.39384594]
[1770156992386,2.28168344,2258.3,2256.9,2.39384594]
[1770156992580,2.28168344,2258.3,2257.0,0.22182]
[1770156992785,2.216,2259.3,2257.3,0.2218]
[1770156992984,4.49768344,2259.3,2257.9,2.39384594]
[1770156993184,2.28168344,2260.1,2258.1,2.61556594]
[1770156993380,2.28168344,2259.9,2258.1,2.39384594]
[1770156993680,2.05784789,2260.3,2258.1,2.39384594]
[1770156993681,2.28168344,2259.7,2258.1,2.39742198]
[1770156995183,0.22158,2259.5,2258.1,0.00357604]
[1770156995384,2.28168344,2259.3,2258.1,0.00357604]
[1770156996382,2.28168344,2259.6,2258.3,2.39384594]
[1770156997184,2.28168344,2260.0,2258.3,2.39384594]
[1770156997582,2.28168344,2259.8,2258.3,2.39384594]
[1770156998487,2.50324344,2259.8,2258.1,2.39742198]
[1770156999185,2.28168344,2259.1,2257.4,5.02645991]
[1770156999385,2.28168344,2258.9,2257.1,0.22182]
[1770156999581,2.28168344,2258.2,2256.7,2.39384594]
[1770157000183,2.28543352,2258.2,2256.7,2.39728036]
[1770157000383,2.28168344,2257.0,2255.5,5.02645991]
[1770157000588,2.28168344,2256.8,2255.5,2.39384594]
[1770157001189,2.28168344,2257.2,2255.9,2.39384594]
[1770157001391,2.28168344,2257.2,2255.9,2.39796618]
[1770157001591,2.28168344,2257.6,2256.2,2.05784789]
[1770157001887,2.28168344,2257.6,2256.3,2.39384594]
[1770157002187,2.28168344,2257.6,2256.3,2.599]
[1770157002388,2.28168344,2257.6,2256.4,2.39384594]
[1770157003389,2.28168344,2258.0,2256.4,2.39384594]
[1770157003591,2.28168344,2258.0,2256.7,2.39384594]
[1770157003789,2.28168344,2258.0,2256.2,2.39384594]
[1770157003989,2.50341344,2258.0,2256.2,2.39384594]
[1770157004186,2.28168344,2257.5,2255.9,2.63673421]
[1770157004393,2.28168344,2256.6,2255.0,1.0]
[1770157004794,2.50357344,2256.4,2255.0,1.0]
[1770157004990,2.28168344,2256.4,2255.0,1.0]
[1770157005190,2.28168344,2256.4,2255.1,4.816]
[1770157005389,2.28732186,2256.4,2255.1,4.81931154]
[1770157006194,2.28168344,2256.2,2255.1,0.00331154]
[1770157006391,2.50361344,2256.0,2255.1,0.00331154]
[1770157006598,2.28168344,2255.7,2254.1,2.17384594]
[1770157006796,2.28168344,2255.7,2253.9,0.44409456]
[1770157006993,2.28168344,2255.7,2254.0,4.816]
[1770157007595,2.28168344,2255.7,2254.0,4.82056995]
[1770157007797,2.28168344,2255.7,2254.0,0.00456995]
[1770157007993,2.28168344,2255.7,2254.1,4.817]
[1770157008198,2.28168344,2255.7,2254.2,4.817]
[1770157008499,2.28168344,2255.7,2254.0,0.00456995]
[1770157008500,2.28168344,2255.5,2254.0,0.00456995]
[1770157008691,2.28168344,2255.5,2254.1,4.99384594]
[1770157008895,2.28168344,2255.5,2254.2,2.39384594]
[1770157009597,2.28168344,2255.5,2254.3,7.21184594]
[1770157009801,2.28168344,2255.5,2254.4,7.21184594]
[1770157010096,2.50362344,2255.9,2254.5,2.39384594]
[1770157010497,2.50362344,2255.9,2254.2,0.2221]
[1770157010498,2.44704862,2255.7,2254.1,4.66170652]
[1770157010694,2.44704862,2255.4,2254.3,5.04570652]
[1770157011697,2.44704862,2255.7,2254.4,2.66678652]
[1770157011900,2.44704862,2255.7,2254.4,2.44470652]
[1770157012100,2.44704862,2255.7,2254.5,4.818]
[1770157012502,2.44704862,2256.0,2254.7,2.44470652]
[1770157012698,2.44704862,2256.0,2254.9,2.44470652]
[1770157013208,2.44704862,2256.0,2255.0,4.819]
[1770157013804,2.44704862,2256.3,2255.1,2.44470652]
[1770157015103,0.00563842,2256.4,2255.3,2.44470652]
[1770157015400,2.26677558,2256.4,2255.3,2.44470652]
[1770157015606,2.26677558,2256.4,2255.4,4.82]
[1770157015801,2.26677558,2256.4,2255.3,2.44470652]
[1770157016007,2.26677558,2256.4,2255.3,2.602]
[1770157016206,2.26677558,2256.4,2255.3,4.96395431]
[1770157016407,2.26677558,2256.4,2255.3,2.36195431]
[1770157016708,2.26677558,2256.4,2255.4,4.82]
[1770157017009,2.26677558,2256.4,2255.5,2.602]
[1770157018006,2.26677558,2256.4,2255.0,2.218]
[1770157018207,2.26677558,2256.4,2255.1,2.602]
[1770157018609,2.26113716,2256.2,2255.1,4.82]
[1770157019508,2.26113716,2256.2,2254.6,2.36195431]
[1770157019709,2.26113716,2255.9,2254.5,0.22207]
[1770157019904,2.48307716,2255.9,2254.6,2.602]
[1770157020110,2.48307716,2255.9,2254.6,4.82]
[1770157020511,2.48307716,2255.9,2254.3,2.36195431]
[1770157020706,2.26113716,2255.7,2254.5,2.36195431]
[1770157021404,2.26113716,2256.3,2254.9,2.36195431]
[1770157021607,2.26113716,2256.3,2255.3,2.36195431]
[1770157021909,2.26113716,2256.3,2255.4,2.602]
[1770157022105,2.26113716,2256.3,2255.3,2.36195431]
[1770157022309,0.00563842,2256.4,2255.5,2.602]
[1770157022510,0.00563842,2256.4,2255.5,4.96395431]
[1770157023106,2.26677558,2256.4,2255.2,2.36195431]
[1770157023307,2.26677558,2256.4,2255.2,4.96395431]
[1770157023508,2.48866558,2256.4,2254.5,2.58402431]
[1770157023706,2.48866558,2256.4,2254.7,2.58400431]
[1770157023908,2.48866558,2256.4,2254.9,2.58398431]
[1770157024314,2.48866558,2256.4,2255.1,2.36195431]
[1770157024614,0.00563842,2256.4,2255.3,2.58394431]
[1770157024911,0.00563842,2256.4,2255.5,2.36195431]
[1770157025105,2.26677558,2256.4,2255.3,0.22199]
[1770157025304,2.48866558,2256.4,2255.1,2.36195431]
[1770157025609,2.48866558,2256.4,2255.2,4.82]
[1770157025911,2.48866558,2256.4,2255.3,4.82]
[1770157026912,2.48866558,2256.4,2255.1,2.36195431]
[1770157027119,2.48866558,2256.4,2255.0,4.82]
[1770157027914,2.48866558,2256.4,2254.9,0.22203]
[1770157028119,2.48866558,2256.4,2255.0,7.18195431]
[1770157029019,2.48866558,2256.4,2255.1,2.36195431]
[1770157029620,2.26677558,2256.4,2255.2,4.82]
[1770157029816,0.00563842,2256.4,2255.3,2.36195431]
[1770157030321,0.00563842,2256.4,2255.4,2.36195431]
[1770157031118,2.26113716,2256.8,2255.8,2.36195431]
[1770157031320,2.26113716,2256.8,2255.4,2.63261397]
[1770157031513,0.22187,2256.6,2255.2,4.99456828]
[1770157031813,2.26113716,2256.3,2254.9,7.21256828]
[1770157032011,2.26492567,2256.3,2255.0,4.96395431]
[1770157032210,2.26492567,2256.3,2255.1,2.36195431]
[1770157032421,0.00378851,2256.3,2255.2,2.58395431]
[1770157033220,2.26492567,2256.3,2255.2,2.58395431]
[1770157033413,2.26492567,2256.3,2255.2,5.21656828]
[1770157033616,2.26492567,2256.3,2255.3,2.36195431]
[1770157034017,0.00378851,2256.3,2255.6,2.85457397]
[1770157034321,2.26113716,2256.9,2255.7,4.99456828]
[1770157035224,2.26685931,2256.9,2255.7,4.99456828]
[1770157035424,2.26685931,2256.9,2255.7,2.63261397]
[1770157035619,2.26685931,2256.9,2255.5,2.63261397]
[1770157035820,2.26685931,2256.9,2255.5,2.602]
[1770157036225,2.26685931,2256.9,2255.5,5.23461397]
[1770157036525,2.26113716,2256.7,2255.5,2.63261397]
[1770157036825,2.26113716,2256.7,2255.6,2.602]
[1770157037225,2.26113716,2256.7,2255.5,2.63261397]
[1770157037525,2.26113716,2256.7,2255.4,2.602]
[1770157037526,2.48299716,2256.7,2255.4,2.602]
[1770157038225,2.26113716,2256.5,2255.2,2.63261397]
[1770157038417,2.26113716,2256.5,2255.3,4.96395431]
[1770157038621,2.26113716,2256.5,2255.3,7.59656828]
[1770157038825,2.26113716,2256.5,2255.4,2.36195431]
[1770157039522,2.26113716,2256.5,2255.4,4.99456828]
[1770157039922,2.26113716,2256.5,2255.4,7.59656828]
[1770157040627,2.26113716,2256.5,2255.5,2.602]
[1770157041730,2.26113716,2256.5,2255.3,2.63261397]
[1770157041929,2.26113716,2256.5,2255.4,4.92623341]
[1770157042130,2.29498438,2256.8,2255.7,2.29361944]
[1770157042327,2.29498438,2256.8,2255.9,2.63261397]
[1770157042622,0.00572215,2256.9,2256.1,2.29361944]
[1770157042925,2.29498438,2257.5,2256.5,2.63261397]
[1770157043223,2.29498438,2257.5,2256.4,2.63261397]
[1770157043224,2.51677438,2257.5,2256.4,2.63261397]
[1770157043429,2.51677438,2257.5,2256.3,2.63261397]
[1770157043826,2.52249298,2257.5,2256.3,4.92946752]
[1770157044226,2.30070298,2257.5,2256.5,4.92623341]
[1770157044426,2.30070298,2257.5,2256.6,4.92623341]
[1770157044928,0.0057186,2257.5,2256.8,4.92623341]
[1770157045123,0.0057186,2257.5,2256.9,2.602]
[1770157045329,0.0057186,2257.5,2256.7,2.63261397]
[1770157045529,0.0057186,2257.5,2256.8,2.602]
[1770157045728,0.0057186,2257.5,2256.9,2.602]
[1770157046126,2.29498438,2258.0,2257.0,2.602]
[1770157047131,2.29947286,2258.0,2257.0,2.602]
[1770157047327,2.29947286,2258.0,2256.7,4.92623341]
[1770157047328,2.29947286,2258.0,2256.7,2.29361944]
[1770157047627,2.29947286,2258.0,2256.5,2.63261397]
[1770157047931,2.29498438,2257.4,2256.3,0.00323411]
[1770157048127,2.51677438,2257.4,2256.3,0.00323411]
[1770157048630,2.29498438,2257.4,2256.3,0.00323411]
[1770157050632,2.29498438,2257.4,2256.4,2.601]
[1770157050828,2.51677438,2257.4,2256.3,0.00323411]
[1770157052427,2.29498438,2257.7,2256.5,4.92623341]
[1770157052628,2.29947286,2258.0,2256.6,4.92623341]
[1770157052833,2.29947286,2258.0,2256.7,2.29361944]
[1770157053134,2.29947286,2258.0,2256.8,7.11161944]
[1770157053332,2.29947286,2258.0,2256.6,2.63261397]
[1770157053533,2.29498438,2257.7,2256.5,2.63261397]
[1770157053736,0.00448848,2258.0,2256.5,2.601]
[1770157053737,2.29498438,2257.5,2256.5,2.601]
[1770157054830,2.29498438,2257.8,2256.6,2.601]
[1770157055034,2.29498438,2257.8,2256.7,2.29361944]
[1770157058038,2.29498438,2257.8,2256.8,2.601]
[1770157058437,2.29498438,2257.8,2256.8,4.89461944]
[1770157059240,0.00448848,2258.0,2256.9,2.29361944]
[1770157059539,2.29947286,2258.0,2256.9,2.29361944]
[1770157060242,2.29498438,2258.3,2257.1,2.29361944]
[1770157060436,2.29498438,2258.3,2257.3,2.29361944]
[1770157060636,2.29498438,2258.3,2257.2,4.84961397]
[1770157060837,2.29498438,2258.3,2257.3,2.601]
[1770157061243,2.3000031,2258.3,2257.1,2.29361944]
[1770157061433,2.3000031,2258.3,2257.4,2.29361944]
[1770157061639,0.00501872,2258.3,2257.4,2.29361944]
[1770157062344,0.00501872,2258.3,2257.5,4.89461944]
[1770157062543,0.00501872,2258.3,2257.6,2.29361944]
[1770157063347,2.29498438,2258.9,2257.6,2.29361944]
[1770157063943,2.29498438,2258.9,2257.7,2.6]
[1770157064446,2.52213344,2258.9,2257.7,2.6]
[1770157064642,2.52213344,2258.9,2257.6,2.29361944]
[1770157064643,2.52213344,2258.9,2257.6,2.6]
[1770157065044,2.52213344,2258.9,2257.4,2.51539944]
[1770157065245,2.52213344,2258.9,2257.5,2.6]
[1770157065442,2.52213344,2258.9,2257.5,4.89361944]
[1770157065842,2.52213344,2258.9,2257.6,2.6]
[1770157066242,2.52213344,2258.9,2257.6,4.89361944]
[1770157066545,2.30049344,2258.9,2257.6,4.89361944]
[1770157066746,2.30049344,2258.9,2257.7,2.29361944]
[1770157067147,2.30049344,2258.9,2257.6,2.6]
[1770157067543,2.30049344,2258.9,2257.5,2.51538944]
[1770157068047,2.30049344,2258.9,2257.6,4.89361944]
[1770157070243,2.29498438,2258.6,2257.4,2.29361944]
[1770157070647,2.29498438,2258.6,2257.4,2.51540944]
[1770157070949,2.29498438,2258.6,2257.1,6.16361608]
[1770157070950,2.29498438,2258.6,2257.1,2.29726298]
[1770157071146,2.29498438,2258.6,2257.2,2.6]
[1770157071341,2.42386038,2258.4,2257.1,4.92987695]
[1770157071548,2.42386038,2258.2,2257.1,2.29726298]
[1770157071944,2.42386038,2257.7,2256.6,2.29726298]
[1770157072752,2.42386038,2258.2,2256.6,2.51912298]
[1770157072951,2.64557038,2258.2,2256.7,2.29726298]
[1770157073843,2.42386038,2258.0,2256.6,2.6]
[1770157074153,2.42386038,2257.7,2256.3,0.00323411]
[1770157074748,2.64566038,2257.3,2256.3,0.00323411]
[1770157074947,2.42386038,2257.1,2256.3,0.00323411]
[1770157075354,0.00374947,2257.3,2256.4,5.14376944]
[1770157075548,0.00374947,2257.3,2256.6,2.51115547]
[1770157077553,0.00374947,2257.3,2256.5,2.6]
[1770157078349,2.38769094,2258.9,2257.2,2.51115547]
[1770157078551,2.38769094,2258.9,2257.4,2.51115547]
[1770157078752,2.38769094,2258.9,2257.5,2.73293547]
[1770157079149,2.39295289,2258.9,2257.5,2.73293547]
[1770157079454,2.39295289,2258.9,2257.6,2.6]
[1770157079850,2.38769094,2258.7,2257.4,2.63261397]
[1770157080050,2.38769094,2258.7,2257.4,2.6]
[1770157080249,2.38769094,2258.7,2257.2,2.63261397]
[1770157080455,2.60937094,2258.5,2257.1,2.51115547]
[1770157080851,2.38769094,2258.3,2257.0,2.63261397]
[1770157081056,2.38769094,2258.1,2256.7,2.63261397]
[1770157081253,2.38769094,2258.1,2256.9,2.51115547]
[1770157081959,2.38769094,2257.6,2256.3,0.00323411]
[1770157082149,2.38769094,2257.3,2256.3,0.00323411]
[1770157082456,2.38769094,2257.1,2256.3,0.00323411]
[1770157085764,2.38769094,2257.1,2255.5,5.14376944]
[1770157085963,2.38769094,2257.1,2255.3,5.14376944]
[1770157085964,2.38769094,2256.7,2255.3,5.14376944]
[1770157086264,2.38769094,2256.7,2255.3,2.51115547]
[1770157086461,2.38769094,2257.2,2255.5,2.51115547]
[1770157086760,0.00505161,2257.3,2256.3,2.51115547]
[1770157086966,0.00505161,2257.3,2256.5,2.51115547]
[1770157087161,0.00505161,2257.3,2256.2,2.51115547]
[1770157087162,2.39274255,2257.3,2256.2,2.51115547]
[1770157087366,2.39274255,2257.3,2256.2,5.11115547]
[1770157087763,2.39274255,2257.3,2255.9,2.51115547]
[1770157088161,2.38769094,2256.9,2255.6,2.51115547]
[1770157088359,0.00505161,2257.3,2255.5,2.63721939]
[1770157088360,2.38769094,2256.7,2255.5,0.00460542]
[1770157089067,2.38769094,2256.1,2254.8,2.51115547]
[1770157089265,2.38769094,2256.6,2255.0,2.51115547]
[1770157089469,2.38769094,2256.6,2255.3,2.73314547]
[1770157089668,2.38769094,2257.1,2255.5,2.51115547]
[1770157089865,2.38769094,2256.9,2255.5,2.51115547]
[1770157090065,2.38769094,2256.9,2255.5,2.51632063]
[1770157090260,2.38769094,2256.9,2255.6,2.51115547]
[1770157090468,2.38769094,2256.9,2255.5,0.00516516]
[1770157091169,2.38769094,2256.2,2254.9,2.51115547]
[1770157091365,2.38769094,2255.9,2254.7,2.51115547]
[1770157092272,2.38769094,2255.9,2254.7,2.51496234]
[1770157092473,2.38769094,2255.9,2254.8,2.601]
[1770157092771,2.38769094,2255.9,2254.7,2.51496234]
[1770157096375,2.38769094,2255.9,2254.7,0.00380687]
[1770157097270,2.60963094,2255.9,2254.7,0.00380687]
[1770157098870,2.38769094,2255.9,2254.7,2.51496234]
[1770157099477,2.38769094,2256.2,2254.9,2.51115547]
[1770157099673,2.38769094,2256.2,2255.1,2.51115547]
[1770157099874,2.38769094,2256.2,2255.2,2.51115547]
[1770157100870,0.22197,2255.6,2254.0,3.9534426]
[1770157101075,2.43998,2255.5,2253.9,2.60338307]
[1770157101872,4.28010962,2255.5,2253.4,0.221882]
[1770157102076,4.28010962,2255.5,2253.4,2.60330051]
[1770157102077,0.22202,2255.0,2253.4,2.60330051]
[1770157102277,2.82402,2255.0,2253.4,2.60330051]
[1770157102875,2.41848873,2254.9,2253.4,2.60330051]
[1770157103076,2.41848873,2254.9,2253.4,2.60809412]
[1770157103578,2.41848873,2254.6,2253.4,0.22667561]
[1770157104372,2.41848873,2254.5,2253.4,0.22667561]
[1770157104576,2.218,2254.6,2253.4,0.22667561]
[1770157104577,2.41848873,2254.3,2253.4,0.22667561]
[1770157104776,2.41848873,2254.3,2252.6,2.38141851]
[1770157104974,2.41848873,2254.1,2252.8,2.38141851]
[1770157105477,2.41848873,2254.1,2252.8,2.6088622]
[1770157105678,2.41848873,2254.1,2252.9,0.22744369]
[1770157105879,2.41848873,2254.1,2253.1,0.22744369]
[1770157106077,2.41848873,2254.5,2253.3,2.38141851]
[1770157106271,2.41848873,2254.5,2252.9,2.38141851]
[1770157106581,2.41848873,2254.3,2252.8,0.00344076]
[1770157106877,2.64058873,2254.3,2252.8,2.38485927]
[1770157107774,2.64060873,2254.0,2252.8,0.00344076]
[1770157107980,2.41848873,2253.8,2252.8,0.00344076]
[1770157108172,2.42212095,2253.8,2252.8,0.23088445]
[1770157108373,2.42212095,2253.8,2252.9,0.22744369]
[1770157108778,0.00363222,2253.8,2252.8,2.38485927]
[1770157108980,0.00363222,2253.8,2253.0,0.22744369]
[1770157109176,2.41848873,2254.4,2253.3,0.22744369]
[1770157109378,2.41848873,2254.8,2253.4,2.38141851]
[1770157109974,2.64052873,2254.8,2252.9,2.38141851]
[1770157110177,2.64428243,2254.8,2253.0,2.38141851]
[1770157110383,2.41848873,2254.6,2253.0,2.38141851]
[1770157110574,2.41848873,2254.6,2253.0,2.6088622]
[1770157110779,2.41848873,2254.6,2253.1,2.6088622]
[1770157110977,2.41848873,2254.6,2253.1,2.38141851]
[1770157111180,2.41848873,2254.6,2253.1,2.6088622]
[1770157111383,2.41848873,2254.6,2253.3,2.38141851]
[1770157112084,0.0037537,2254.8,2254.1,2.38141851]
[1770157112379,2.42224243,2254.8,2253.8,2.38141851]
[1770157112580,2.42224243,2254.8,2253.8,2.6088622]
[1770157112778,2.42224243,2254.8,2254.0,0.22744369]
[1770157113175,2.42224243,2254.8,2253.8,2.38141851]
[1770157113376,2.42224243,2254.8,2253.8,2.6088622]
[1770157113580,2.42224243,2254.8,2253.5,2.38141851]
[1770157113781,0.0037537,2254.8,2253.9,2.38141851]
[1770157113977,0.0037537,2254.8,2254.2,2.38141851]
[1770157114281,2.41848873,2255.3,2254.3,0.22744369]
[1770157114482,2.41848873,2255.3,2254.2,2.38141851]
[1770157114679,2.219,2255.4,2254.2,2.38141851]
[1770157114982,2.219,2255.4,2254.5,0.22744369]
[1770157115182,2.22471767,2255.4,2254.5,0.2317218]
[1770157115385,2.22471767,2255.4,2254.7,0.22744369]
[1770157115585,2.41848873,2255.9,2254.7,2.38141851]
[1770157115784,2.41848873,2255.9,2255.0,2.6088622]
[1770157115982,2.41848873,2255.9,2255.0,2.38141851]
[1770157116178,2.41848873,2255.9,2255.2,0.22744369]
[1770157116383,2.41848873,2255.9,2254.7,2.38141851]
[1770157116681,2.4226678,2255.9,2254.7,2.38141851]
[1770157116882,2.4226678,2255.9,2255.0,0.22744369]
[1770157117084,2.4226678,2255.9,2254.6,2.38141851]
[1770157117284,2.4226678,2255.9,2254.9,2.38141851]
[1770157117485,0.00417907,2255.9,2255.0,2.6088622]
[1770157117786,2.219,2256.3,2255.4,2.6088622]
[1770157118085,2.219,2256.3,2255.4,2.38141851]
[1770157118280,2.41848873,2256.9,2255.6,2.38141851]
[1770157118487,2.41848873,2256.9,2255.4,2.38141851]
[1770157118690,2.41848873,2256.6,2255.4,2.38141851]
[1770157118986,2.42244305,2256.6,2255.4,2.38141851]
[1770157119180,2.42244305,2256.6,2255.6,0.22744369]
[1770157119585,2.42244305,2256.6,2255.9,0.22744369]
[1770157119886,0.00395432,2256.6,2255.7,2.38141851]
[1770157120087,0.00395432,2256.6,2256.0,0.22744369]
[1770157120584,0.00395432,2256.6,2256.2,0.22744369]
[1770157120883,2.219,2257.2,2256.2,2.38633532]
[1770157121184,2.41848873,2257.6,2256.6,2.38141851]
[1770157121690,2.42216606,2257.6,2256.8,0.22744369]
[1770157121984,0.00367733,2257.6,2257.0,0.22744369]
[1770157122183,0.00367733,2257.6,2257.1,2.6088622]
[1770157122387,2.41848873,2257.9,2257.1,2.38141851]
[1770157122588,2.41848873,2257.9,2257.2,0.22744369]
[1770157122886,2.41848873,2258.2,2257.4,0.22744369]
[1770157123085,2.41848873,2258.2,2257.3,0.22744369]
[1770157123281,0.00552898,2258.2,2257.4,0.22744369]
[1770157123480,0.00552898,2258.2,2257.5,0.22744369]
[1770157123684,2.41848873,2258.8,2258.0,0.22744369]
[1770157123886,2.41848873,2258.8,2257.7,2.6088622]
[1770157124089,2.41848873,2259.5,2258.1,2.6088622]
[1770157124392,2.41848873,2259.5,2258.2,2.38141851]
[1770157124589,2.42218542,2259.5,2258.4,2.6088622]
[1770157124785,2.42218542,2259.5,2258.5,2.6088622]
[1770157125186,2.42218542,2259.5,2258.6,0.22744369]
[1770157125388,2.42218542,2259.5,2258.7,0.22744369]
[1770157125584,2.42218542,2259.5,2258.2,2.3863432]
[1770157125887,2.42218542,2259.5,2258.2,2.61378689]
[1770157126283,0.00369669,2259.5,2258.6,2.38141851]
[1770157126486,0.00369669,2259.5,2258.7,0.22744369]
[1770157126795,2.41848873,2260.4,2259.4,2.6088622]
[1770157127088,2.41848873,2260.4,2259.4,2.38141851]
[1770157127291,2.41848873,2260.4,2259.0,2.38141851]
[1770157127689,2.42405184,2260.4,2259.0,2.38141851]
[1770157128689,2.42405184,2260.4,2259.0,2.6088622]
[1770157128886,2.42405184,2260.4,2259.3,0.22744369]
[1770157129092,2.42405184,2260.4,2259.3,2.38141851]
[1770157129390,0.00556311,2260.4,2259.7,2.38141851]
[1770157129794,0.22196456,2261.3,2260.3,0.22744369]
[1770157129795,2.41848873,2261.1,2260.3,0.22744369]
[1770157130090,0.22196456,2261.3,2260.4,2.38141851]
[1770157130282,0.22196456,2261.3,2260.6,2.6088622]
[1770157130491,2.41848873,2262.2,2260.8,2.33795925]
[1770157130786,2.42329146,2262.2,2260.8,2.34335178]
[1770157130986,0.00480273,2262.2,2261.4,2.33795925]
[1770157131188,2.30465154,2262.2,2261.0,2.33795925]
[1770157131688,2.30465154,2262.2,2260.8,2.34335178]
[1770157131889,2.30465154,2262.2,2260.8,2.57079547]
[1770157132290,2.30465154,2262.2,2261.0,2.33795925]
[1770157132492,2.30465154,2262.2,2261.0,2.56540294]
[1770157132790,2.30465154,2262.2,2260.8,0.00539253]
[1770157132791,2.29984881,2262.0,2260.8,0.00539253]
[1770157132989,2.52118881,2262.0,2260.8,0.00539253]
[1770157133495,2.29984881,2262.0,2260.8,0.00539253]
[1770157133694,2.29984881,2262.0,2261.0,0.22744369]
[1770157134091,2.29984881,2262.0,2261.2,0.22744369]
[1770157134295,2.29984881,2262.0,2260.8,2.34335178]
[1770157134794,2.29984881,2262.0,2260.8,0.00539253]
[1770157135397,2.27447422,2261.8,2260.8,0.00539253]
[1770157135595,2.27447422,2261.7,2260.8,0.00539253]
[1770157135791,2.27447422,2261.6,2260.0,2.33795925]
[1770157135997,2.27447422,2261.4,2259.4,2.34367862]
[1770157136193,2.27447422,2261.4,2259.8,2.34367862]
[1770157136498,2.27447422,2261.4,2260.2,2.34367862]
[1770157136898,2.27447422,2261.4,2260.3,0.22744369]
[1770157137095,2.27447422,2261.4,2260.2,0.00349089]
[1770157137301,2.27447422,2261.2,2260.2,0.00349089]
[1770157137798,2.27447422,2261.2,2259.4,2.34367862]
[1770157138506,2.27447422,2260.8,2259.1,2.34367862]
[1770157138892,2.27447422,2260.8,2259.5,0.22744369]
[1770157139098,2.27447422,2260.8,2259.5,2.57112231]
[1770157139298,2.27447422,2260.8,2259.7,0.22744369]
[1770157139500,2.27447422,2260.8,2259.8,0.22744369]
[1770157139897,2.27447422,2260.8,2260.0,0.22744369]
[1770157140202,2.27447422,2260.8,2259.8,0.22744369]
[1770157140599,2.27447422,2260.8,2259.5,2.34367862]
[1770157140801,2.27447422,2260.8,2259.8,0.22744369]
[1770157141002,2.27447422,2260.8,2259.7,0.22744369]
[1770157141201,2.27447422,2260.8,2259.9,0.22744369]
[1770157141402,2.49583422,2261.8,2260.0,2.34367862]
[1770157141603,2.49585422,2261.6,2260.0,2.34367862]
[1770157142001,2.49585422,2261.6,2259.6,0.22157]
[1770157142002,2.27447422,2261.4,2259.7,2.34367862]
[1770157142403,2.27447422,2261.4,2260.3,2.34367862]
[1770157142804,2.27447422,2261.4,2260.0,2.34367862]
[1770157142999,2.27447422,2260.9,2259.3,2.34367862]
[1770157143200,2.27447422,2260.8,2259.3,2.34367862]
[1770157143397,2.27447422,2260.8,2259.1,0.00496756]
[1770157143398,2.27447422,2260.3,2259.1,0.00496756]
[1770157143603,2.27987283,2260.3,2259.1,0.00496756]
[1770157143907,2.49601422,2260.0,2259.1,0.00496756]
[1770157144102,2.27447422,2260.0,2259.1,0.00496756]
[1770157144302,2.27447422,2260.0,2259.3,0.22744369]
[1770157144503,2.27987283,2260.3,2259.5,0.22744369]
[1770157144909,2.27987283,2260.3,2259.7,0.22744369]
[1770157145206,2.27987283,2260.3,2259.5,0.22744369]
[1770157145708,0.00539861,2260.3,2260.0,0.22744369]
[1770157146202,0.00539861,2260.3,2260.2,0.22744369]
[1770157146403,2.27447422,2260.6,2260.0,0.22744369]
[1770157146611,2.27447422,2260.6,2259.9,0.22744369]
[1770157147009,2.27447422,2260.6,2260.1,0.22744369]
[1770157147203,2.27447422,2260.9,2260.0,0.22744369]
[1770157147404,2.27910572,2260.9,2259.8,0.22744369]
[1770157147807,2.27910572,2260.9,2260.0,0.22744369]
[1770157148112,2.27910572,2260.9,2259.8,0.22744369]
[1770157148301,2.27910572,2260.9,2260.0,0.22744369]
[1770157148705,2.27910572,2260.9,2260.2,0.22744369]
[1770157148907,2.27910572,2260.9,2260.1,0.22744369]
[1770157149305,2.27910572,2260.9,2260.4,0.22744369]
[1770157149512,2.27910572,2260.9,2260.2,0.22744369]
[1770157150009,2.27910572,2260.9,2260.4,0.22744369]
[1770157150212,2.27910572,2260.9,2259.8,2.34367862]
[1770157150411,0.0046315,2260.9,2260.3,0.22744369]
[1770157150711,0.0046315,2260.9,2260.1,0.22744369]
[1770157151006,2.27447422,2260.8,2259.6,2.34367862]
[1770157151216,2.27447422,2260.8,2259.8,0.22744369]
[1770157151417,2.27447422,2260.8,2259.9,0.22744369]
[1770157151816,2.27447422,2260.8,2260.0,0.22744369]
[1770157152015,2.27447422,2260.8,2259.9,0.22744369]
[1770157152414,2.27447422,2260.8,2260.0,0.22744369]
[1770157152619,0.0046315,2260.9,2260.0,2.34367862]
[1770157152917,2.50055572,2260.9,2259.4,2.34367862]
[1770157153117,2.50055572,2260.9,2259.5,0.22744369]
[1770157153314,2.50055572,2260.9,2259.6,2.57112231]